bitfinex/quotes_ETHUSD_20251224
["timestamp","ask_amount","ask_price","bid_price","bid_amount"]
[1766545337740,1.12791752,2929.0,2928.5,0.002]
[1766545338138,0.9425,2928.8,2928.5,0.002]
[1766545338626,0.9425,2928.8,2927.8,3.41553384]
[1766545339571,0.9425,2928.8,2927.8,6.83106768]
[1766545339870,1.8115,2929.2,2927.8,6.83106768]
[1766545340082,1.8115,2929.2,2927.8,10.24660152]
[1766545340234,0.9425,2929.0,2927.8,6.83106768]
[1766545340438,0.9425,2928.8,2927.8,6.83306768]
[1766545341336,1.02496647,2929.1,2927.8,6.83306768]
[1766545341533,2.01014169,2929.1,2927.8,6.83306768]
[1766545341766,0.9425,2929.0,2927.8,6.83306768]
[1766545342436,0.9425,2929.0,2927.8,10.24860152]
[1766545342637,0.9425,2929.4,2927.8,10.24860152]
[1766545342936,0.9425,2929.7,2928.2,5.085366]
[1766545343139,0.98513239,2929.6,2928.3,0.875]
[1766545343577,0.98513239,2929.6,2928.4,0.03414834]
[1766545343737,0.9425,2929.6,2928.4,0.03414834]
[1766545343943,0.9425,2929.6,2928.5,6.82943486]
[1766545344468,0.9425,2929.6,2928.6,8.865152]
[1766545344663,0.9425,2929.6,2928.6,2.159884]
[1766545344854,0.9425,2930.1,2928.7,6.541219]
[1766545345058,0.98513239,2930.0,2928.8,0.875]
[1766545345693,0.98513239,2930.0,2928.9,0.03414251]
[1766545345694,0.9425,2929.9,2928.9,0.03414251]
[1766545345892,0.9425,2929.7,2928.7,6.82896848]
[1766545346254,0.868,2930.0,2928.7,6.82896848]
[1766545346255,0.04263239,2929.9,2928.7,6.82896848]
[1766545346457,0.04263239,2929.9,2928.8,0.03414367]
[1766545347281,0.04263239,2929.9,2928.7,10.24345272]
[1766545347590,0.04263239,2929.9,2928.8,2.271285]
[1766545348002,0.04263239,2929.9,2929.0,6.82826902]
[1766545348170,0.9425,2930.0,2929.1,0.90914017]
[1766545348361,0.9425,2930.7,2929.1,0.90914017]
[1766545348693,1.02455692,2930.4,2929.1,0.875]
[1766545348906,1.02455692,2930.4,2929.2,19.351629]
[1766545349065,0.9425,2930.5,2929.4,18.575329]
[1766545349270,0.9425,2930.5,2929.5,0.03413551]
[1766545349471,0.04263239,2930.4,2929.6,0.875]
[1766545349671,0.98513239,2930.4,2929.6,0.875]
[1766545350893,0.98513239,2930.4,2929.7,0.03413318]
[1766545351096,0.9425,2930.4,2929.7,0.03413318]
[1766545351414,0.9425,2930.4,2929.6,0.875]
[1766545351786,0.04263239,2931.0,2929.7,0.03413318]
[1766545351787,0.9733,2930.9,2929.7,0.03413318]
[1766545351976,0.867,2931.7,2929.8,4.394265]
[1766545352174,1.01593239,2931.6,2930.1,6.8257056]
[1766545352485,1.01593239,2931.6,2930.2,0.90912736]
[1766545352894,1.0261888,2931.6,2930.2,0.03412736]
[1766545353104,0.9733,2930.4,2928.8,3.41435642]
[1766545353429,0.9733,2930.2,2929.2,3.41386902]
[1766545353711,0.9733,2930.0,2928.9,0.875]
[1766545353882,0.9733,2929.8,2929.0,3.41413451]
[1766545354297,0.9733,2929.8,2929.0,6.82826902]
[1766545354505,0.9733,2929.8,2929.1,0.00858283]
[1766545354817,0.04265629,2930.4,2928.6,3.41448703]
[1766545354818,0.993,2929.6,2928.6,3.41448703]
[1766545355006,0.993,2929.4,2928.6,3.41452528]
[1766545355189,0.993,2929.4,2928.9,3.41422619]
[1766545355514,0.993,2929.4,2929.0,0.00858967]
[1766545355924,0.993,2929.4,2928.9,3.41422619]
[1766545356221,0.04266211,2930.0,2929.0,0.00858967]
[1766545356222,0.993,2929.9,2929.0,0.00858967]
[1766545356393,0.993,2929.9,2929.0,0.4383854]
[1766545356598,0.001,2929.8,2929.0,0.4383854]
[1766545357185,0.993,2929.7,2928.8,3.41436765]
[1766545357393,0.001,2929.8,2928.9,0.88358734]
[1766545357598,0.994,2929.8,2928.9,0.875]
[1766545358187,0.993,2930.2,2929.0,6.83685345]
[1766545358416,0.993,2930.2,2929.0,10.24240353]
[1766545358716,0.993,2930.5,2929.3,4.91464921]
[1766545358906,0.993,2930.8,2929.4,0.88456884]
[1766545359410,1.03565047,2930.8,2929.4,0.88456884]
[1766545359618,0.993,2930.8,2929.5,20.862503]
[1766545359817,3.41207376,2930.8,2929.6,0.00856171]
[1766545360018,3.41207376,2930.8,2928.5,0.2]
[1766545360019,1.00325641,2930.5,2928.5,6.864862]
[1766545360211,1.00325641,2930.5,2928.0,8.32987264]
[1766545360212,1.00325641,2930.3,2928.7,6.82896848]
[1766545360400,0.993,2930.1,2928.8,0.88458109]
[1766545360587,0.993,2929.9,2928.8,0.88458109]
[1766545360786,0.59179056,2930.4,2928.8,0.88458109]
[1766545360787,0.04265774,2930.3,2928.8,0.88458109]
[1766545360994,1.03565774,2930.3,2928.8,0.88458109]
[1766545361192,0.993,2930.3,2928.8,0.876]
[1766545361387,0.993,2930.3,2928.9,3.755648]
[1766545361591,0.993,2930.8,2929.2,8.813063]
[1766545361828,1.03565192,2930.7,2929.3,0.876]
[1766545362028,0.993,2930.7,2929.4,2.68856622]
[1766545362337,0.993,2930.7,2929.6,10.24030584]
[1766545362498,0.993,2930.7,2929.7,0.876]
[1766545363392,0.001,2931.0,2930.0,18.597956]
[1766545363597,1.03564174,2931.4,2930.2,5.071796]
[1766545363598,0.993,2931.4,2930.2,5.071796]
[1766545363824,0.993,2931.4,2930.3,0.47516763]
[1766545363989,0.993,2931.4,2930.2,4.197717]
[1766545364196,0.993,2931.4,2930.3,6.82523972]
[1766545364808,1.03563592,2931.8,2930.5,0.0375]
[1766545365005,0.993,2931.7,2930.6,0.876]
[1766545365204,0.993,2931.5,2930.6,0.876]
[1766545365416,1.03564174,2931.4,2930.6,0.876]
[1766545365809,0.04263737,2931.7,2930.7,0.04603623]
[1766545366012,0.994,2931.9,2930.7,0.04603623]
[1766545366226,0.04263592,2931.8,2930.8,0.0375]
[1766545366558,1.03563592,2931.8,2930.3,0.0375]
[1766545366710,1.03563592,2931.8,2930.7,0.876]
[1766545367836,0.993,2931.3,2929.4,2.119411]
[1766545368129,0.993,2931.1,2929.9,3.41301219]
[1766545368303,1.03564756,2931.0,2930.0,3.41296928]
[1766545368627,1.03564756,2931.0,2930.1,0.875]
[1766545369212,0.993,2931.3,2930.2,0.0375]
[1766545369423,1.03564465,2931.2,2929.9,3.41304838]
[1766545369625,0.993,2931.1,2929.9,6.86363415]
[1766545369821,0.04264756,2931.0,2930.0,0.0375]
[1766545370021,1.0356461,2931.1,2930.2,0.0375]
[1766545370230,1.0356461,2931.1,2930.3,0.875]
[1766545370441,1.19900281,2931.0,2930.3,0.875]
[1766545370616,1.03564901,2930.9,2930.3,0.875]
[1766545372549,0.04264174,2931.4,2930.4,0.00854759]
[1766545372846,1.869,2931.3,2930.4,0.04604759]
[1766545373024,0.001,2931.3,2930.5,0.0375]
[1766545373227,0.001,2931.3,2930.6,0.04603915]
[1766545373745,0.001,2931.3,2930.3,0.875]
[1766545373746,0.994,2931.3,2930.3,0.875]
[1766545373945,0.993,2931.1,2930.3,0.875]
[1766545374126,1.03564756,2931.0,2930.3,0.875]
[1766545377357,1.03564756,2931.0,2930.1,0.0375]
[1766545377560,1.03564756,2931.0,2930.2,0.00854948]
[1766545377863,1.03564756,2931.0,2930.1,3.45034328]
[1766545378067,1.03564756,2931.0,2930.1,0.0375]
[1766545378233,1.03564756,2931.0,2930.0,4.28793681]
[1766545378433,0.993,2930.9,2930.0,4.28793681]
[1766545378662,0.993,2930.7,2930.0,4.28793681]
[1766545379357,1.03565338,2930.6,2929.8,0.875]
[1766545379533,1.03565338,2930.6,2929.8,4.28819183]
[1766545379734,1.03565338,2930.6,2929.8,0.875]
[1766545380765,1.03565338,2930.6,2929.9,0.002]
[1766545381365,0.9389,2930.5,2929.9,0.002]
[1766545381666,0.9389,2930.3,2929.4,0.875]
[1766545381868,0.04265483,2930.5,2929.5,0.00856986]
[1766545382041,0.98155483,2930.5,2929.7,3.41323985]
[1766545382246,0.9389,2930.5,2929.8,3.46124079]
[1766545382445,0.04265629,2930.4,2929.0,3.41607464]
[1766545382648,0.9389,2929.1,2928.4,0.002]
[1766545382831,0.04267668,2929.0,2928.4,0.002]
[1766545383037,0.04267085,2929.4,2928.5,3.45617717]
[1766545383261,0.875,2929.2,2928.6,0.38817804]
[1766545383461,0.875,2929.2,2928.4,0.002]
[1766545383633,0.9389,2929.7,2928.7,6.82895802]
[1766545383840,0.98156794,2929.6,2928.5,0.875]
[1766545384160,0.9389,2929.5,2928.6,3.41452094]
[1766545384739,0.9389,2929.5,2928.6,3.41460083]
[1766545385036,0.9389,2929.5,2928.7,0.42896008]
[1766545385464,0.9389,2929.9,2928.8,0.00859157]
[1766545385668,0.9389,2929.7,2928.7,0.42896008]
[1766545385866,0.9389,2929.5,2928.7,0.42896008]
[1766545386048,0.9389,2929.5,2928.8,0.38435609]
[1766545387141,0.9389,2929.5,2928.8,3.79870219]
[1766545387542,0.01025641,2930.0,2928.8,3.79870219]
[1766545387543,0.9389,2929.8,2928.9,0.00858996]
[1766545387968,0.04266211,2930.0,2929.0,0.875]
[1766545388137,0.04266357,2929.9,2929.0,0.875]
[1766545388343,0.9389,2929.8,2929.0,1.32226816]
[1766545388675,0.9389,2929.6,2929.0,1.32226816]
[1766545388967,0.04266939,2929.5,2929.0,1.32226816]
[1766545389141,0.9389,2929.5,2929.0,0.875]
[1766545389340,0.9389,2929.5,2929.0,0.877]
[1766545391076,0.9389,2929.5,2929.1,0.00858676]
[1766545391281,0.9389,2930.0,2929.1,0.00858676]
[1766545391487,0.05291707,2930.1,2929.0,0.002]
[1766545391488,0.9389,2929.8,2929.0,0.002]
[1766545391690,0.98156648,2929.7,2929.0,0.002]
[1766545391982,0.98156648,2929.7,2929.0,0.34362373]
[1766545392370,0.98156648,2929.7,2929.1,0.00858414]
[1766545392580,0.9389,2930.9,2929.2,0.875]
[1766545392885,0.9389,2930.7,2929.3,0.03413784]
[1766545393057,0.9389,2930.5,2929.4,6.82733664]
[1766545393257,0.9389,2930.3,2929.5,0.03413551]
[1766545393654,0.21901824,2930.6,2929.5,0.03413551]
[1766545393861,0.97299327,2930.6,2929.4,6.82733664]
[1766545394156,4.3852808,2930.6,2929.3,3.41376328]
[1766545394379,0.94915641,2930.5,2929.4,0.875]
[1766545394582,0.94915641,2930.5,2929.0,0.34362373]
[1766545394583,0.94915641,2930.3,2929.0,0.34362373]
[1766545394765,0.9389,2930.1,2929.0,0.877]
[1766545394969,0.9389,2929.9,2929.1,0.03414017]
[1766545395175,0.01025641,2930.2,2929.1,3.41392931]
[1766545395176,0.03409327,2929.8,2929.1,3.41392931]
[1766545395374,0.94915641,2930.2,2929.0,4.29110213]
[1766545395375,0.9389,2930.0,2929.0,4.29110213]
[1766545395576,0.9389,2929.8,2929.0,0.877]
[1766545395783,0.9389,2929.6,2929.0,0.877]
[1766545395988,0.97299327,2929.5,2929.0,0.877]
[1766545396495,0.866,2930.3,2929.0,4.29111564]
[1766545396496,0.9389,2930.0,2929.0,4.29111564]
[1766545396661,0.9389,2929.8,2929.0,4.29111564]
[1766545396994,0.03409327,2929.7,2929.1,0.42911156]
[1766545397290,0.03409327,2929.7,2929.1,3.84312838]
[1766545397882,0.9389,2929.8,2929.1,3.84312838]
[1766545398084,0.03409327,2929.7,2929.1,3.84312838]
[1766545398665,0.9399,2929.8,2929.1,3.84312838]
[1766545398863,0.9399,2929.8,2929.2,0.40251269]
[1766545399157,0.9399,2929.8,2929.3,0.03413784]
[1766545399363,0.001,2929.8,2929.3,0.03413784]
[1766545400613,0.9399,2929.8,2929.2,0.40251269]
[1766545400901,0.9389,2929.6,2929.0,0.002]
[1766545401478,0.9389,2929.6,2926.3,3.59]
[1766545401479,0.01025641,2928.5,2926.3,3.59]
[1766545401770,0.94915641,2927.9,2926.9,0.2528]
[1766545401970,0.94915641,2927.9,2925.5,3.5960572]
[1766545401971,0.9389,2926.9,2924.2,0.01025641]
[1766545402171,0.2528,2926.6,2924.8,0.01025641]
[1766545402404,0.04271313,2926.5,2925.3,5.318311]
[1766545402591,0.9389,2926.8,2925.5,3.477402]
[1766545402795,0.04271021,2926.7,2925.7,4.880965]
[1766545403101,0.01025641,2928.0,2925.7,4.880965]
[1766545403102,0.04269125,2928.0,2926.5,0.01025641]
[1766545403267,0.9389,2928.0,2926.6,0.875]
[1766545403467,0.04269271,2927.9,2926.8,3.41670083]
[1766545403884,0.04269271,2927.9,2926.7,3.4270554]
[1766545404123,0.9389,2927.8,2925.0,3.41870145]
[1766545404407,0.9389,2927.8,2925.8,3.41786414]
[1766545404408,0.9389,2927.6,2925.8,3.41786414]
[1766545404611,0.9389,2927.4,2925.9,0.875]
[1766545404783,0.9389,2927.2,2925.9,0.875]
[1766545404981,0.01025641,2927.5,2925.9,0.875]
[1766545404982,0.9389,2927.0,2925.9,0.875]
[1766545405186,0.9389,2926.8,2925.5,0.875]
[1766545405396,0.98161021,2926.7,2925.5,0.875]
[1766545405603,0.98161021,2926.7,2925.6,3.41810226]
[1766545405801,0.98161021,2926.7,2925.6,6.83620452]
[1766545406276,0.9389,2926.7,2925.6,3.41810226]
[1766545406492,0.04271167,2926.6,2925.7,0.03417985]
[1766545407009,0.04271167,2926.6,2925.5,0.875]
[1766545407010,0.98161167,2926.6,2925.5,0.875]
[1766545407211,0.98161167,2926.6,2926.5,0.002]
[1766545407416,0.98161167,2926.6,2925.5,0.875]
[1766545407621,0.9389,2926.5,2925.4,0.002]
[1766545407921,0.9389,2926.5,2923.7,0.20697489]
[1766545407922,0.94915641,2925.0,2923.7,0.20697489]
[1766545408071,1.41218308,2924.4,2924.2,0.002]
[1766545408275,0.9087365,2924.9,2922.9,2.447752]
[1766545408276,1.8049,2924.3,2922.9,2.447752]
[1766545408510,1.8049,2924.3,2921.8,0.01025868]
[1766545408511,0.9389,2924.3,2923.1,5.168692]
[1766545408991,0.9389,2924.3,2923.6,3.42042429]
[1766545409278,0.9389,2924.3,2923.2,3.42088501]
[1766545409482,0.9389,2924.3,2923.1,3.4210191]
[1766545409671,0.01026009,2924.2,2923.0,0.875]
[1766545409914,0.01026009,2923.8,2922.8,0.003]
[1766545410090,0.9389,2923.5,2922.8,0.003]
[1766545410405,0.01026009,2924.0,2921.4,14.63871]
[1766545410406,0.9389,2923.3,2921.4,14.63871]
[1766545410619,0.9389,2923.3,2921.6,12.538421]
[1766545410905,0.9389,2923.9,2921.9,0.01026237]
[1766545411205,0.01026377,2923.4,2922.2,16.434624]
[1766545411376,0.98876377,2922.8,2921.2,16.933473]
[1766545411575,0.98876377,2922.8,2921.7,3.42266488]
[1766545411576,0.01026377,2922.6,2921.7,3.42266488]
[1766545411781,0.01026377,2922.4,2921.7,4.29766488]
[1766545411987,0.01026377,2922.4,2921.7,7.72032976]
[1766545412307,0.9785,2921.8,2921.0,0.0058201]
[1766545412484,0.01026676,2923.8,2921.7,14.600383]
[1766545412691,0.9785,2923.9,2921.9,12.188712]
[1766545412885,0.9785,2923.9,2922.1,13.182449]
[1766545413075,0.01026676,2923.8,2922.2,0.9671]
[1766545413278,0.9785,2923.9,2922.5,8.979776]
[1766545413478,0.87526676,2924.4,2923.0,0.9671]
[1766545413479,0.9785,2924.4,2923.0,0.9671]
[1766545413678,0.9785,2924.4,2923.1,0.90921025]
[1766545413896,0.9785,2924.4,2923.1,0.875]
[1766545414551,0.94116676,2924.8,2923.2,0.9671]
[1766545414811,0.9309,2924.5,2923.2,0.9671]
[1766545415306,0.9309,2924.1,2923.2,0.875]
[1766545415478,0.9309,2924.1,2923.3,3.42079157]
[1766545416609,0.9309,2924.1,2923.4,0.03420674]
[1766545416796,0.01026676,2924.6,2923.3,6.84158314]
[1766545416797,0.9309,2924.6,2923.3,6.84158314]
[1766545417508,0.9309,2924.6,2923.3,10.26237471]
[1766545417696,0.9309,2924.6,2923.4,0.03420674]
[1766545417904,0.9309,2924.6,2923.3,7.79008314]
[1766545418206,0.94116676,2925.2,2923.5,0.9485]
[1766545418420,0.9309,2925.2,2923.7,0.9485]
[1766545418720,0.9309,2925.2,2923.8,0.91020206]
[1766545418913,0.9309,2925.2,2923.8,1.85870206]
[1766545419110,0.9309,2925.2,2923.9,0.18587021]
[1766545419618,0.9309,2925.2,2924.0,6.83994528]
[1766545419915,0.9309,2925.2,2924.0,7.78844528]
[1766545420519,0.9309,2925.2,2924.1,0.03419855]
[1766545421520,0.9309,2925.2,2924.0,7.78844528]
[1766545421735,0.01026676,2926.1,2924.2,18.250939]
[1766545421903,0.9309,2926.2,2924.5,0.9485]
[1766545422105,0.94116676,2926.2,2924.6,0.98269271]
[1766545422303,0.9309,2926.2,2924.8,0.9485]
[1766545422504,0.9309,2926.2,2925.0,2.52636]
[1766545422710,0.9309,2926.2,2925.1,0.03418686]
[1766545423529,0.94116676,2926.7,2925.1,0.98268686]
[1766545423823,0.94116676,2926.7,2925.3,0.9485]
[1766545424026,0.94116676,2926.7,2925.4,0.91018335]
[1766545424027,0.9309,2926.7,2925.4,0.91018335]
[1766545424217,0.9309,2926.7,2925.5,0.18586834]
[1766545425129,0.9309,2926.7,2925.5,1.13436834]
[1766545425440,0.9309,2927.1,2925.5,1.13436834]
[1766545425601,0.94116676,2927.0,2925.5,1.13436834]
[1766545425802,0.94116676,2927.0,2925.7,6.83597086]
[1766545426098,3.42637882,2927.4,2925.8,0.98267868]
[1766545426099,0.01026676,2927.4,2925.8,0.98267868]
[1766545426332,0.01026676,2927.4,2926.0,0.9485]
[1766545426502,0.94116676,2927.4,2926.1,0.03417518]
[1766545426702,0.9309,2926.9,2925.8,0.875]
[1766545427328,0.9309,2926.9,2925.8,1.8235]
[1766545427953,0.9309,2926.9,2925.9,3.4177518]
[1766545428254,0.9309,2926.9,2924.7,0.9485]
[1766545428255,0.01026676,2926.2,2924.7,0.9485]
[1766545428536,0.01026676,2926.2,2925.3,3.41843202]
[1766545428736,0.01026676,2926.2,2925.0,3.41876872]
[1766545428897,0.01026676,2926.2,2924.9,0.9485]
[1766545428898,0.01026676,2926.2,2925.1,0.03418686]
[1766545429104,0.01026676,2926.4,2925.4,3.41830675]
[1766545429298,0.01026676,2926.4,2925.2,3.41854359]
[1766545429551,0.01026676,2926.0,2924.8,0.875]
[1766545429837,0.01026676,2926.0,2924.9,6.8378406]
[1766545430042,0.01026676,2926.2,2924.9,6.8378406]
[1766545430537,0.01026676,2926.3,2925.0,0.9485]
[1766545430739,0.9309,2926.2,2925.0,0.9485]
[1766545430938,0.9309,2926.2,2924.9,6.8378406]
[1766545431239,0.9309,2926.0,2924.9,3.4189203]
[1766545432030,0.9309,2926.0,2924.7,0.875]
[1766545432031,0.9309,2926.0,2925.0,0.03418803]
[1766545432213,0.9319,2926.0,2924.9,0.0341892]
[1766545432531,0.001,2926.0,2924.9,0.9826892]
[1766545432708,0.9309,2926.4,2925.1,0.9485]
[1766545432908,0.9309,2926.4,2925.3,0.9485]
[1766545433109,0.9309,2927.0,2925.4,0.98268335]
[1766545433333,0.9309,2927.0,2925.4,0.9485]
[1766545433826,0.9309,2927.0,2925.5,10.2546573]
[1766545434025,0.9309,2927.0,2925.5,11.2031573]
[1766545434347,0.9309,2927.0,2925.6,0.03418102]
[1766545434667,0.9309,2927.0,2925.7,0.875]
[1766545434868,0.9309,2927.0,2925.8,0.03417868]
[1766545435033,0.9309,2927.0,2925.7,0.875]
[1766545435231,0.001,2927.2,2925.9,0.9485]
[1766545435427,0.001,2927.2,2926.1,0.9485]
[1766545435732,0.001,2927.2,2926.2,0.875]
[1766545436046,0.001,2927.2,2926.4,6.8343357]
[1766545436252,0.001,2927.2,2926.5,0.03417051]
[1766545436431,0.001,2927.2,2926.4,6.8343357]
[1766545437331,0.001,2927.2,2926.4,3.41716785]
[1766545438252,0.001,2927.2,2926.5,0.03417051]
[1766545438846,0.9309,2927.9,2926.5,0.9485]
[1766545439057,0.9309,2927.9,2926.7,0.9485]
[1766545439255,0.9309,2927.9,2926.8,0.9485]
[1766545440222,0.9309,2927.9,2926.9,7.78166818]
[1766545440539,0.9309,2928.8,2927.0,0.9485]
[1766545440727,0.01026676,2928.4,2927.2,0.9485]
[1766545441331,0.01026676,2928.4,2926.6,3.41693272]
[1766545441332,0.9552,2927.6,2926.6,3.41693272]
[1766545441538,0.01026676,2927.7,2925.8,3.41777205]
[1766545441539,0.96546676,2927.5,2926.4,4.29214578]
[1766545441746,0.001,2927.2,2926.6,3.41689891]
[1766545442252,0.001,2927.2,2926.4,0.875]
[1766545442253,0.9562,2927.2,2926.4,0.875]
[1766545442757,0.9562,2927.2,2926.4,4.29214366]
[1766545444346,0.9562,2927.2,2926.4,7.70931151]
[1766545444543,0.001,2927.2,2926.5,0.03417051]
[1766545445059,0.9562,2927.2,2926.5,0.03417051]
[1766545445258,0.9562,2927.2,2926.4,4.29214366]
[1766545445828,0.9562,2927.2,2926.4,0.875]
[1766545446164,0.01026676,2926.9,2925.4,0.996]
[1766545446363,0.9552,2926.7,2925.5,3.41810579]
[1766545446574,0.861,2926.8,2925.7,0.996]
[1766545446776,0.861,2926.8,2925.9,0.996]
[1766545447436,0.01026676,2927.1,2925.9,0.996]
[1766545447437,0.9552,2927.1,2925.9,0.996]
[1766545448444,0.01026676,2927.0,2925.9,0.996]
[1766545448633,0.01026676,2927.0,2925.9,4.41374963]
[1766545448634,1.8162,2926.9,2925.9,4.41374963]
[1766545449534,0.9552,2926.8,2925.6,0.875]
[1766545449754,0.01026676,2926.7,2925.7,3.41790711]
[1766545449956,0.01026676,2926.7,2925.5,3.41813639]
[1766545449957,0.96546676,2926.7,2925.5,3.41813639]
[1766545450162,0.96546676,2926.7,2925.6,3.41807514]
[1766545450664,0.9552,2926.2,2924.9,0.002]
[1766545450838,0.9552,2926.0,2925.3,3.41843303]
[1766545452963,0.9552,2926.0,2924.9,7.8358406]
[1766545453334,0.9552,2926.0,2924.9,6.8398406]
[1766545453665,0.9552,2926.0,2925.0,0.996]
[1766545453957,0.861,2925.9,2925.0,1.03018803]
[1766545454134,0.9552,2926.5,2925.1,0.996]
[1766545454333,0.87126676,2926.4,2925.3,0.996]
[1766545454568,0.9552,2926.4,2925.4,0.03418335]
[1766545454864,0.861,2926.3,2925.3,0.996]
[1766545455158,1.82646676,2926.3,2925.4,3.4525193]
[1766545455359,0.18264668,2926.2,2925.4,3.4525193]
[1766545455533,0.18264668,2926.2,2925.4,7.86685525]
[1766545455734,0.18264668,2926.2,2925.4,4.41433595]
[1766545456541,0.18264668,2926.2,2925.4,7.8326719]
[1766545457058,1.04364668,2926.2,2925.4,4.41433595]
[1766545457367,0.19988467,2926.1,2925.4,4.41432894]
[1766545457956,1.8162,2926.3,2925.4,4.41432894]
[1766545459037,1.8162,2926.3,2925.4,7.83266489]
[1766545459455,0.9552,2926.2,2925.0,0.996]
[1766545459635,0.96546676,2926.2,2925.1,0.03418686]
[1766545459852,0.96546676,2926.2,2925.1,3.41859329]
[1766545460181,0.96546676,2926.0,2925.4,0.002]
[1766545460539,0.96546676,2926.0,2924.9,0.877]
[1766545460540,0.01026676,2924.7,2923.8,0.996]
[1766545460739,0.87126676,2924.6,2923.8,0.996]
[1766545460939,0.861,2924.5,2923.8,0.996]
[1766545461180,0.01026676,2924.4,2923.8,0.996]
[1766545462373,0.861,2924.3,2923.8,4.41618941]
[1766545462686,0.01026676,2924.4,2923.9,0.996]
[1766545462882,0.861,2924.4,2923.9,0.996]
[1766545463541,0.01026676,2924.3,2923.9,0.996]
[1766545464669,0.861,2924.4,2923.9,0.996]
[1766545464889,0.861,2924.4,2923.7,0.002]
[1766545464890,0.01026676,2924.1,2923.7,0.002]
[1766545465672,0.01026676,2924.3,2923.7,0.002]
[1766545465866,0.861,2924.2,2923.7,0.002]
[1766545466373,0.861,2924.5,2923.8,0.996]
[1766545466760,0.861,2924.7,2923.8,0.996]
[1766545467279,0.01026676,2924.6,2923.9,0.002]
[1766545467943,0.01026676,2924.1,2923.4,0.998]
[1766545468357,0.01026676,2924.1,2923.4,4.41864024]
[1766545468561,0.01026676,2924.4,2923.5,3.42053609]
[1766545468869,0.01026676,2924.2,2923.6,3.42041248]
[1766545469075,0.861,2924.1,2923.5,4.41653851]
[1766545469585,0.861,2924.1,2923.6,3.42041258]
[1766545469743,0.861,2924.1,2923.6,4.41641258]
[1766545470183,0.861,2924.1,2923.6,0.996]
[1766545470549,0.87226676,2924.2,2923.6,0.996]
[1766545470866,0.87226676,2924.2,2923.1,0.996]
[1766545470867,0.01026676,2923.8,2923.1,0.996]
[1766545471063,0.01026676,2924.1,2923.3,0.9786]
[1766545471297,0.01026676,2924.1,2923.3,4.39935054]
[1766545471298,0.87226676,2924.1,2923.3,4.39935054]
[1766545471684,0.01026676,2924.1,2923.4,0.9786]
[1766545471890,0.01026676,2924.4,2923.3,3.42075054]
[1766545471891,0.862,2924.3,2923.6,0.9786]
[1766545472190,0.01026676,2924.2,2923.6,0.9786]
[1766545473678,0.01026676,2924.0,2923.1,4.3995331]
[1766545473878,0.01026676,2924.0,2923.0,0.002]
[1766545473879,0.01026676,2923.6,2923.0,0.002]
[1766545474093,0.01026676,2923.8,2923.1,3.42095333]
[1766545474094,0.861,2923.7,2923.1,3.42095333]
[1766545474394,0.861,2923.7,2923.1,4.39955333]
[1766545474699,0.01026676,2924.0,2923.3,3.42075395]
[1766545475075,0.862,2923.9,2923.2,4.35956784]
[1766545475490,0.01026676,2923.8,2923.2,0.9387]
[1766545476006,0.862,2924.1,2923.3,0.9387]
[1766545476191,0.01026676,2924.1,2923.3,0.9387]
[1766545476885,0.01026676,2924.3,2923.3,0.9387]
[1766545477093,0.01026676,2924.1,2923.3,0.9387]
[1766545477784,0.01026676,2924.1,2923.4,3.42067455]
[1766545477990,0.01026676,2924.1,2923.4,4.35937455]
[1766545478315,0.01026676,2924.7,2923.5,0.9387]
[1766545478503,0.01026676,2924.4,2923.5,0.9387]
[1766545478699,8.35512833,2925.3,2923.4,6.8413491]
[1766545478700,3.42867916,2926.2,2924.3,0.9387]
[1766545479008,3.42867916,2926.2,2923.8,23.334816]
[1766545479009,0.01026676,2925.6,2924.5,0.9387]
[1766545479203,0.01026676,2925.4,2924.5,0.9387]
[1766545479396,0.01026676,2925.2,2924.5,0.9387]
[1766545479618,0.01026676,2925.0,2923.7,0.9387]
[1766545479905,0.01026676,2925.0,2923.6,4.408398]
[1766545479906,0.01026676,2924.6,2923.9,0.9387]
[1766545480085,0.01026676,2924.9,2923.9,0.9387]
[1766545480287,0.861,2924.9,2923.9,0.9387]
[1766545480794,0.01026676,2925.2,2923.9,0.9387]
[1766545480795,0.01026676,2924.8,2923.9,0.9387]
[1766545480993,0.01026676,2924.8,2924.0,0.03419972]
[1766545481195,0.87126676,2925.0,2924.1,0.9387]
[1766545481400,0.861,2925.0,2924.3,0.9387]
[1766545481705,0.01026676,2925.4,2924.5,0.9387]
[1766545481909,0.01026676,2925.6,2924.7,0.9387]
[1766545482913,0.01026676,2925.6,2924.7,0.97289154]
[1766545483111,0.01026676,2925.8,2924.7,0.9387]
[1766545483424,0.87126676,2925.6,2924.7,0.9387]
[1766545483780,0.87126676,2925.6,2924.8,3.41903719]
[1766545483982,0.001,2925.6,2924.9,0.9387]
[1766545484218,0.001,2925.6,2924.9,0.9728892]
[1766545485112,0.001,2925.6,2924.9,0.9387]
[1766545485282,0.01026676,2925.5,2924.9,0.9387]
[1766545485713,0.01026676,2925.4,2924.1,0.876]
[1766545485925,0.01026676,2925.4,2924.2,0.9387]
[1766545486096,0.01026676,2925.2,2924.4,0.9387]
[1766545487417,0.001,2925.6,2924.4,0.9387]
[1766545487595,0.001,2925.6,2924.3,7.02071356]
[1766545487596,0.001,2925.6,2924.6,0.9387]
[1766545487798,0.862,2925.6,2924.6,0.9387]
[1766545488004,0.87226676,2925.6,2924.6,0.9387]
[1766545488209,0.87226676,2925.6,2924.8,0.9387]
[1766545489816,0.001,2925.6,2924.8,0.9387]
[1766545489993,0.862,2925.6,2924.8,0.9387]
[1766545490195,0.862,2925.6,2924.8,4.35767905]
[1766545491038,0.001,2925.6,2924.8,4.35767905]
[1766545491335,0.862,2925.6,2924.8,4.35767905]
[1766545492000,0.862,2925.6,2924.8,0.9387]
[1766545492233,0.01026676,2925.5,2924.8,0.9387]
[1766545492732,0.01026676,2925.1,2924.4,0.9387]
[1766545492902,0.01026676,2925.0,2924.2,3.4197364]